fUSD/lending_fUSD_20260115
["ID","MTS","AMOUNT","RATE_DAILY","PERIOD"]
[402088954,1768515075051,-500.0,0.00036164,10]
[402088955,1768515075063,-750.5,0.00036164,10]
[402088956,1768515075076,-1404.97,0.00036164,10]
[402088957,1768515075089,-556.03,0.00036164,10]
[402088958,1768515075098,-500.0,0.00036164,10]
[402088959,1768515075110,-500.0,0.00036164,10]
[402088960,1768515075120,-500.0,0.00036164,10]
[402088961,1768515075130,-500.0,0.00036164,10]
[402088962,1768515075140,-500.0,0.00036164,10]
[402088963,1768515075151,-500.0,0.00036164,10]
[402088964,1768515075160,-998.05,0.00036164,10]
[402088965,1768515075171,-500.0,0.00036164,10]
[402088966,1768515075182,-500.0,0.00036164,10]
[402088967,1768515075191,-2038.37,0.00036164,10]
[402088968,1768515075201,-890.3,0.00036164,10]
[402088969,1768515075211,-272.93321369,0.00036164,10]
[402088970,1768515075220,-500.0,0.00036164,10]
[402088971,1768515075231,-639.07263536,0.00036164,10]
[402088972,1768515075240,-500.0,0.00036164,10]
[402088973,1768515075250,-760.03,0.00036164,10]
[402088974,1768515075260,-567.18,0.00036164,10]
[402088975,1768515075270,-668.62,0.00036164,10]
[402088976,1768515075280,-571.08336812,0.00036164,10]
[402088977,1768515075289,-500.0,0.00036164,10]
[402088978,1768515075299,-557.15,0.00036164,10]
[402088979,1768515075310,-500.0,0.00036164,10]
[402088980,1768515075320,-500.0,0.00036164,10]
[402088981,1768515075331,-637.55893607,0.00036164,10]
[402088982,1768515075342,-500.0,0.00036164,10]
[402088983,1768515075351,-725.15,0.00036164,10]
[402088984,1768515075362,-865.07,0.00036164,10]
[402088985,1768515075371,-500.0,0.00036164,10]
[402088986,1768515075381,-890.84,0.00036164,10]
[402088987,1768515075391,-807.71,0.00036164,10]
[402088988,1768515075401,-500.0,0.00036164,10]
[402088989,1768515075411,-950.15,0.00036164,10]
[402088990,1768515075422,-838.0,0.00036164,10]
[402088991,1768515075434,-500.0,0.00036164,10]
[402088992,1768515075444,-526.13,0.00036164,10]
[402088993,1768515075455,-500.0,0.00036164,10]
[402088994,1768515075465,-500.0,0.00036164,10]
[402088995,1768515075475,-500.0,0.00036164,10]
[402088996,1768515075484,-500.0,0.00036164,10]
[402088997,1768515075494,-1100.76,0.00036164,10]
[402088998,1768515075504,-500.0,0.00036164,10]
[402088999,1768515075514,-500.0,0.00036164,10]
[402089000,1768515075523,-500.0,0.00036164,10]
[402089001,1768515075532,-500.0,0.00036164,10]
[402089002,1768515075542,-517.97,0.00036164,10]
[402089003,1768515075552,-500.0,0.00036164,10]
[402089004,1768515075562,-500.0,0.00036164,10]
[402089005,1768515075571,-640.45,0.00036164,10]
[402089006,1768515075582,-500.0,0.00036164,10]
[402089007,1768515075591,-500.0,0.00036164,10]
[402089008,1768515075602,-1422.69,0.00036164,10]
[402089009,1768515075612,-585.92,0.00036164,10]
[402089010,1768515075622,-500.0,0.00036164,10]
[402089011,1768515075631,-500.0,0.00036164,10]
[402089012,1768515075641,-500.0,0.00036164,10]
[402089013,1768515075651,-713.8,0.00036164,10]
[402089014,1768515075660,-1082.32,0.00036164,10]
[402089015,1768515075670,-513.14,0.00036164,10]
[402089016,1768515075680,-500.0,0.00036164,10]
[402089017,1768515075690,-500.0,0.00036164,10]
[402089018,1768515075708,-500.0,0.00036164,10]
[402089019,1768515075719,-832.64,0.00036164,10]
[402089020,1768515075729,-271.0,0.00036164,10]
[402089021,1768515075739,-500.0,0.00036164,10]
[402089022,1768515075749,-500.0,0.00036164,10]
[402089023,1768515075758,-500.0,0.00036164,10]
[402089024,1768515075768,-500.0,0.00036164,10]
[402089025,1768515075777,-617.57975743,0.00036164,10]
[402089026,1768515075786,-500.0,0.00036164,10]
[402089027,1768515075795,-500.0,0.00036164,10]
[402089028,1768515075805,-500.0,0.00036164,10]
[402089029,1768515075814,-380.79918345,0.00036164,10]
[402089030,1768515075824,-685.8,0.00036164,10]
[402089031,1768515075834,-500.0,0.00036164,10]
[402089032,1768515075843,-277.59094323,0.00036164,10]
[402089033,1768515075853,-500.0,0.00036164,10]
[402089034,1768515075862,-500.0,0.00036164,10]
[402089035,1768515075871,-413.00236916,0.00036164,10]
[402089036,1768515075881,-500.0,0.00036164,10]
[402089037,1768515075890,-500.0,0.00036164,10]
[402089038,1768515075899,-500.0,0.00036164,10]
[402089039,1768515075909,-588.06,0.00036164,10]
[402089040,1768515075918,-500.0,0.00036164,10]
[402089041,1768515075928,-500.0,0.00036164,10]
[402089042,1768515075937,-1136.4,0.00036164,10]
[402089043,1768515075947,-500.0,0.00036164,10]
[402089044,1768515075956,-500.0,0.00036164,10]
[402089045,1768515075967,-1009.59,0.00036164,10]
[402089046,1768515075976,-500.0,0.00036164,10]
[402089047,1768515075986,-500.0,0.00036164,10]
[402089048,1768515075996,-500.0,0.00036164,10]
[402089049,1768515076011,-598.87,0.00036164,10]
[402089050,1768515076021,-500.0,0.00036164,10]
[402089051,1768515076031,-500.0,0.00036164,10]
[402089052,1768515076040,-566.25229807,0.00036164,10]
[402089053,1768515076051,-500.0,0.00036164,10]
[402089054,1768515076061,-500.0,0.00036164,10]
[402089055,1768515076071,-500.0,0.00036164,10]
[402089056,1768515076081,-500.0,0.00036164,10]
[402089057,1768515076090,-500.0,0.00036164,10]
[402089058,1768515076099,-823.78,0.00036164,10]
[402089059,1768515076108,-1100.07,0.00036164,10]
[402089060,1768515076117,-543.27,0.00036164,10]
[402089061,1768515076126,-500.0,0.00036164,10]
[402089062,1768515076136,-1339.16,0.00036164,10]
[402089063,1768515076145,-500.0,0.00036164,10]
[402089064,1768515076154,-500.0,0.00036164,10]
[402089065,1768515076163,-500.0,0.00036164,10]
[402089066,1768515076172,-500.0,0.00036164,10]
[402089067,1768515076181,-1506.84,0.00036164,10]
[402089068,1768515076190,-500.0,0.00036164,10]
[402089069,1768515076200,-500.0,0.00036164,10]
[402089070,1768515076209,-500.0,0.00036164,10]
[402089071,1768515076218,-761.86,0.00036164,10]
[402089072,1768515076227,-500.0,0.00036164,10]
[402089073,1768515076236,-500.0,0.00036164,10]
[402089074,1768515076246,-1030.73,0.00036164,10]
[402089075,1768515076255,-375.68681891,0.00036164,10]
[402089076,1768515076264,-500.0,0.00036164,10]
[402089077,1768515076273,-534.84,0.00036164,10]
[402089078,1768515076283,-500.0,0.00036164,10]
[402089079,1768515076292,-500.0,0.00036164,120]
[402089080,1768515076301,-500.0,0.00036164,10]
[402089081,1768515076311,-500.0,0.00036164,10]
[402089082,1768515076320,-284.48408884,0.00036164,10]
[402089083,1768515076329,-500.0,0.00036164,10]
[402089084,1768515076338,-500.0,0.00036164,10]
[402089085,1768515076347,-527.04,0.00036164,10]
[402089086,1768515076357,-942.44,0.00036164,10]
[402089087,1768515076366,-500.0,0.00036164,10]
[402089088,1768515076375,-1585.11,0.00036164,10]
[402089089,1768515076384,-743.41,0.00036164,10]
[402089090,1768515076394,-541.26,0.00036164,10]
[402089091,1768515076403,-500.0,0.00036164,10]
[402089092,1768515076412,-573.88,0.00036164,10]
[402089093,1768515076421,-778.51,0.00036164,10]
[402089094,1768515076431,-943.81,0.00036164,10]
[402089095,1768515076440,-500.0,0.00036164,10]
[402089096,1768515076449,-500.0,0.00036164,10]
[402089097,1768515076458,-654.29,0.00036164,10]
[402089098,1768515076467,-731.91,0.00036164,10]
[402089099,1768515076476,-1715.61,0.00036164,10]
[402089100,1768515076486,-500.0,0.00036164,10]
[402089101,1768515076495,-500.0,0.00036164,10]
[402089102,1768515076504,-709.53,0.00036164,10]
[402089103,1768515076514,-545.81,0.00036164,10]
[402089104,1768515076523,-500.0,0.00036164,10]
[402089105,1768515076532,-204.65525376,0.00036164,10]
[402089106,1768515076542,-500.0,0.00036164,10]
[402089107,1768515076551,-607.07384723,0.00036164,10]
[402089108,1768515076560,-500.0,0.00036164,10]
[402089109,1768515076569,-1257.27,0.00036164,10]
[402089110,1768515076579,-500.0,0.00036164,10]
[402089111,1768515076588,-1060.76,0.00036164,10]
[402089112,1768515076597,-500.0,0.00036164,10]
[402089113,1768515076606,-500.0,0.00036164,10]
[402089114,1768515076709,-500.0,0.00036164,10]
[402089115,1768515076719,-500.0,0.00036164,10]
[402089116,1768515076729,-945.82,0.00036164,10]
[402089117,1768515076739,-500.0,0.00036164,10]
[402089118,1768515076748,-500.0,0.00036164,10]
[402089119,1768515076757,-500.0,0.00036164,10]
[402089120,1768515076767,-1081.0,0.00036164,10]
[402089121,1768515076777,-500.0,0.00036164,10]
[402089122,1768515076786,-500.0,0.00036164,10]
[402089123,1768515076795,-1973.9,0.00036164,10]
[402089124,1768515076804,-538.99,0.00036164,10]
[402089125,1768515076814,-500.0,0.00036164,10]
[402089126,1768515076824,-500.0,0.00036164,10]
[402089127,1768515076833,-500.0,0.00036164,10]
[402089128,1768515076843,-1261.36,0.00036164,10]
[402089129,1768515076853,-500.0,0.00036164,10]
[402089130,1768515076862,-582.11,0.00036164,10]
[402089131,1768515076872,-512.92601861,0.00036164,10]
[402089132,1768515076882,-942.89,0.00036164,10]
[402089133,1768515076892,-500.0,0.00036164,10]
[402089134,1768515076901,-500.0,0.00036164,10]
[402089135,1768515076911,-500.0,0.00036164,10]
[402089136,1768515076920,-564.7,0.00036164,10]
[402089137,1768515076929,-500.0,0.00036164,10]
[402089138,1768515076938,-500.0,0.00036164,10]
[402089139,1768515076948,-987.42,0.00036164,10]
[402089140,1768515076957,-1750.03,0.00036164,10]
[402089141,1768515076966,-563.96,0.00036164,10]
[402089142,1768515076975,-817.85,0.00036164,10]
[402089143,1768515076985,-537.49,0.00036164,10]
[402089144,1768515076994,-500.0,0.00036164,10]
[402089145,1768515077006,-1237.13,0.00036164,2]
[402089146,1768515077015,-552.29,0.00036164,10]
[402089147,1768515077026,-1270.63,0.00036164,10]
[402089148,1768515077035,-613.89,0.00036164,10]
[402089149,1768515077045,-500.0,0.00036164,10]
[402089150,1768515077056,-968.82,0.00036164,10]
[402089151,1768515077067,-500.0,0.00036164,10]
[402089152,1768515077078,-500.0,0.00036164,10]
[402089153,1768515077088,-664.74,0.00036164,10]
[402089154,1768515077099,-500.0,0.00036164,10]
[402089155,1768515077109,-598.55,0.00036164,10]
[402089156,1768515077119,-500.0,0.00036164,10]
[402089157,1768515077131,-695.47,0.00036164,10]
[402089158,1768515077141,-500.0,0.00036164,10]
[402089159,1768515077151,-851.00247986,0.00036164,10]
[402089160,1768515077161,-632.3,0.00036164,10]
[402089161,1768515077171,-930.23,0.00036164,10]
[402089162,1768515077181,-500.0,0.00036164,10]
[402089163,1768515077190,-500.0,0.00036164,10]
[402089164,1768515077199,-500.0,0.00036164,10]
[402089165,1768515077210,-500.0,0.00036164,10]
[402089166,1768515077219,-983.17,0.00036164,10]
[402089167,1768515077229,-1339.49,0.00036164,10]
[402089168,1768515077239,-500.0,0.00036164,10]
[402089169,1768515077249,-1461.43,0.00036164,10]
[402089170,1768515077259,-1377.27,0.00036164,10]
[402089171,1768515077267,-435.10103311,0.00036164,10]
[402089172,1768515077278,-500.0,0.00036164,10]
[402089173,1768515077287,-500.0,0.00036164,10]
[402089174,1768515077296,-500.0,0.00036164,10]
[402089175,1768515077307,-548.13,0.00036164,10]
[402089176,1768515077316,-682.59,0.00036164,10]
[402089177,1768515077325,-500.0,0.00036164,10]
[402089178,1768515077335,-500.0,0.00036164,10]
[402089179,1768515077344,-598.47,0.00036164,10]
[402089180,1768515077354,-500.0,0.00036164,10]
[402089181,1768515077363,-500.0,0.00036164,10]
[402089182,1768515077372,-500.0,0.00036164,10]
[402089183,1768515077382,-500.0,0.00036164,10]
[402089184,1768515077391,-500.0,0.00036164,10]
[402089185,1768515077400,-619.16579509,0.00036164,10]
[402089186,1768515077409,-500.0,0.00036164,10]
[402089187,1768515077418,-500.0,0.00036164,10]
[402089188,1768515077428,-616.05912172,0.00036164,10]
[402089189,1768515077437,-500.0,0.00036164,10]
[402089190,1768515077446,-1129.27,0.00036164,10]
[402089191,1768515077455,-500.0,0.00036164,10]
[402089192,1768515077464,-500.0,0.00036164,10]
[402089193,1768515077473,-500.0,0.00036164,10]
[402089194,1768515077483,-957.96,0.00036164,10]
[402089195,1768515077492,-503.12,0.00036164,10]
[402089196,1768515077501,-500.0,0.00036164,10]
[402089197,1768515077511,-1007.72,0.00036164,10]
[402089198,1768515077520,-500.0,0.00036164,10]
[402089199,1768515077529,-702.58,0.00036164,10]
[402089200,1768515077539,-562.36841649,0.00036164,10]
[402089201,1768515077548,-739.97,0.00036164,10]
[402089202,1768515077558,-717.74,0.00036164,10]
[402089203,1768515077568,-500.0,0.00036164,10]
[402089204,1768515077577,-608.01,0.00036164,10]
[402089205,1768515077586,-915.18,0.00036164,10]
[402089206,1768515077595,-500.0,0.00036164,10]
[402089207,1768515077605,-500.0,0.00036164,10]
[402089208,1768515077614,-500.0,0.00036164,10]
[402089209,1768515077624,-501.74,0.00036164,10]
[402089210,1768515077633,-790.73,0.00036164,10]
[402089211,1768515077643,-500.0,0.00036164,10]
[402089212,1768515077653,-500.0,0.00036164,10]
[402089213,1768515077665,-500.88589192,0.00036164,10]
[402089214,1768515077674,-1539.51,0.00036164,10]
[402089215,1768515077684,-500.0,0.00036164,10]
[402089216,1768515077693,-695.88,0.00036164,10]
[402089217,1768515077702,-500.0,0.00036164,10]
[402089218,1768515077712,-891.58,0.00036164,10]
[402089219,1768515077721,-500.0,0.00036164,10]
[402089220,1768515077729,-558.47,0.00036164,10]
[402089221,1768515077739,-655.46,0.00036164,10]
[402089222,1768515077748,-500.0,0.00036164,10]
[402089223,1768515077757,-576.55,0.00036164,10]
[402089224,1768515077767,-500.0,0.00036164,10]
[402089225,1768515077776,-844.94,0.00036164,10]
[402089226,1768515077785,-500.0,0.00036164,10]
[402089227,1768515077794,-962.67,0.00036164,10]
[402089228,1768515077803,-500.0,0.00036164,10]
[402089229,1768515077813,-500.0,0.00036164,10]
[402089230,1768515077822,-1119.22,0.00036164,10]
[402089231,1768515077831,-802.1,0.00036164,10]
[402089232,1768515077840,-1012.73,0.00036164,10]
[402089233,1768515077850,-500.0,0.00036164,10]
[402089234,1768515077859,-500.0,0.00036164,10]
[402089235,1768515077869,-585.92,0.00036164,10]
[402089236,1768515077879,-500.0,0.00036164,10]
[402089237,1768515077888,-921.12,0.00036164,10]
[402089238,1768515077898,-571.18,0.00036164,10]
[402089239,1768515077907,-500.0,0.00036164,10]
[402089240,1768515077916,-500.0,0.00036164,10]
[402089241,1768515077926,-1549.1,0.00036164,10]
[402089242,1768515077936,-851.49,0.00036164,10]
[402089243,1768515077947,-500.0,0.00036164,10]
[402089244,1768515077957,-502.46,0.00036164,10]
[402089245,1768515077967,-500.0,0.00036164,10]
[402089246,1768515077977,-994.04,0.00036164,10]
[402089247,1768515077986,-1011.61,0.00036164,10]
[402089248,1768515077995,-500.0,0.00036164,10]
[402089249,1768515078008,-500.0,0.00036164,10]
[402089250,1768515078017,-1000.0,0.00036164,10]
[402089251,1768515078027,-500.0,0.00036164,10]
[402089252,1768515078036,-500.0,0.00036164,10]
[402089253,1768515078046,-815.84,0.00036164,10]
[402089254,1768515078055,-200.0,0.00036164,120]
[402089255,1768515078066,-563.86,0.00036164,10]
[402089256,1768515078078,-500.0,0.00036164,10]
[402089257,1768515078088,-913.05,0.00036164,10]
[402089258,1768515078098,-500.0,0.00036164,10]
[402089259,1768515078108,-643.56280073,0.00036164,10]
[402089260,1768515078119,-561.26895617,0.00036164,10]
[402089261,1768515078128,-500.0,0.00036164,10]
[402089262,1768515078138,-765.98,0.00036164,10]
[402089263,1768515078147,-500.0,0.00036164,10]
[402089264,1768515078156,-500.0,0.00036164,10]
[402089265,1768515078165,-500.0,0.00036164,10]
[402089266,1768515078174,-526.38,0.00036164,10]
[402089267,1768515078183,-640.34,0.00036164,10]
[402089268,1768515078192,-798.98,0.00036164,10]
[402089269,1768515078202,-500.0,0.00036164,10]
[402089270,1768515078211,-1470.18,0.00036164,10]
[402089271,1768515078222,-500.0,0.00036164,10]
[402089272,1768515078232,-500.0,0.00036164,10]
[402089273,1768515078241,-1358.31,0.00036164,10]
[402089274,1768515078251,-2042.44,0.00036164,10]
[402089275,1768515078260,-614.07,0.00036164,10]
[402089276,1768515078271,-257.2,0.00036164,10]
[402089277,1768515078281,-500.0,0.00036164,10]
[402089278,1768515078291,-500.0,0.00036164,10]
[402089279,1768515078302,-625.66,0.00036164,10]
[402089280,1768515078311,-582.53,0.00036164,10]
[402089281,1768515078320,-500.0,0.00036164,10]
[402089282,1768515078331,-677.77,0.00036164,10]
[402089283,1768515078341,-986.16,0.00036164,10]
[402089284,1768515078352,-609.8833613,0.00036164,10]
[402089285,1768515078361,-947.53,0.00036164,10]
[402089286,1768515078371,-500.0,0.00036164,10]
[402089287,1768515078382,-848.65,0.00036164,10]
[402089288,1768515078392,-430.75180298,0.00036164,10]
[402089289,1768515078401,-500.0,0.00036164,10]
[402089290,1768515078410,-500.0,0.00036164,10]
[402089291,1768515078420,-500.0,0.00036164,10]
[402089292,1768515078429,-500.0,0.00036164,10]
[402089293,1768515078439,-691.12,0.00036164,10]
[402089294,1768515078448,-158.393184,0.00036164,10]
[402089295,1768515078458,-603.42,0.00036164,10]
[402089296,1768515078467,-2720.25,0.00036164,10]
[402089297,1768515078477,-1116.91,0.00036164,10]
[402089298,1768515078486,-500.0,0.00036164,10]
[402089299,1768515078496,-750.59,0.00036164,10]
[402089300,1768515078505,-500.0,0.00036164,10]
[402089301,1768515078515,-155.306841,0.00036164,10]
[402089302,1768515078524,-1038.06,0.00036164,10]
[402089303,1768515078534,-500.0,0.00036164,10]
[402089304,1768515078543,-500.0,0.00036164,10]
[402089305,1768515078552,-167.425482,0.00036164,10]
[402089306,1768515078562,-500.0,0.00036164,10]
[402089307,1768515078571,-500.0,0.00036164,10]
[402089308,1768515078581,-500.0,0.00036164,10]
[402089309,1768515078591,-640.95,0.00036164,10]
[402089310,1768515078600,-500.0,0.00036164,10]
[402089311,1768515078610,-500.0,0.00036164,10]
[402089312,1768515078619,-500.0,0.00036164,10]
[402089313,1768515078628,-742.07,0.00036164,10]
[402089314,1768515078638,-1213.75,0.00036164,10]
[402089315,1768515078647,-500.0,0.00036164,10]
[402089316,1768515078657,-522.97,0.00036164,10]
[402089317,1768515078666,-904.1,0.00036164,10]
[402089318,1768515078675,-500.0,0.00036164,10]
[402089319,1768515078685,-500.0,0.00036164,10]
[402089320,1768515078694,-500.0,0.00036164,10]
[402089321,1768515078703,-500.0,0.00036164,10]
[402089322,1768515078712,-500.0,0.00036164,10]
[402089323,1768515078722,-899.56,0.00036164,10]
[402089324,1768515078731,-500.0,0.00036164,10]
[402089325,1768515078740,-574.32013242,0.00036164,10]
[402089326,1768515078749,-500.0,0.00036164,10]
[402089327,1768515078758,-1294.66,0.00036164,10]
[402089328,1768515078767,-500.0,0.00036164,10]
[402089329,1768515078777,-2075.74,0.00036164,10]
[402089330,1768515078786,-500.0,0.00036164,10]
[402089331,1768515078795,-842.64,0.00036164,10]
[402089332,1768515078804,-818.62,0.00036164,10]
[402089333,1768515078813,-776.19,0.00036164,10]
[402089334,1768515078822,-1098.9,0.00036164,10]
[402089335,1768515078831,-500.0,0.00036164,10]
[402089336,1768515078840,-699.44,0.00036164,10]
[402089337,1768515078849,-821.07,0.00036164,10]
[402089338,1768515078858,-500.0,0.00036164,10]
[402089339,1768515078868,-500.0,0.00036164,10]
[402089340,1768515078878,-649.39,0.00036164,10]
[402089341,1768515078887,-500.0,0.00036164,10]
[402089342,1768515078896,-627.85,0.00036164,10]
[402089343,1768515078905,-1369.09,0.00036164,10]
[402089344,1768515078914,-1073.04,0.00036164,10]
[402089345,1768515078923,-500.0,0.00036164,10]
[402089346,1768515078932,-500.0,0.00036164,10]
[402089347,1768515078941,-500.0,0.00036164,10]
[402089348,1768515078951,-835.32,0.00036164,10]
[402089349,1768515078961,-813.27,0.00036164,10]
[402089350,1768515078971,-503.11,0.00036164,10]
[402089351,1768515078980,-500.0,0.00036164,10]
[402089352,1768515078990,-500.0,0.00036164,10]
[402089353,1768515079000,-500.0,0.00036164,10]
[402089354,1768515079013,-785.26,0.00036164,10]
[402089355,1768515079023,-500.0,0.00036164,10]
[402089356,1768515079032,-970.63,0.00036164,10]
[402089357,1768515079043,-575.86,0.00036164,10]
[402089358,1768515079052,-500.0,0.00036164,10]
[402089359,1768515079062,-516.11,0.00036164,10]
[402089360,1768515079071,-405.98657546,0.00036164,10]
[402089361,1768515079082,-622.54,0.00036164,10]
[402089362,1768515079092,-619.77,0.00036164,10]
[402089363,1768515079101,-500.0,0.00036164,10]
[402089364,1768515079111,-1522.31,0.00036164,10]
[402089365,1768515079121,-629.85,0.00036164,10]
[402089366,1768515079130,-500.0,0.00036164,10]
[402089367,1768515079139,-639.45,0.00036164,10]
[402089368,1768515079149,-2022.58,0.00036164,10]
[402089369,1768515079158,-512.52,0.00036164,10]
[402089370,1768515079168,-300.0,0.00036164,2]
[402089371,1768515079177,-585.55,0.00036164,10]
[402089372,1768515079186,-739.69,0.00036164,10]
[402089373,1768515079196,-1299.58,0.00036164,10]
[402089374,1768515079206,-738.74,0.00036164,10]
[402089375,1768515079216,-500.0,0.00036164,10]
[402089376,1768515079225,-1366.19,0.00036164,10]
[402089377,1768515079235,-500.0,0.00036164,10]
[402089378,1768515079245,-500.0,0.00036164,10]
[402089379,1768515079254,-500.0,0.00036164,10]
[402089380,1768515079264,-500.0,0.00036164,10]
[402089381,1768515079273,-500.0,0.00036164,10]
[402089382,1768515079282,-500.0,0.00036164,10]
[402089383,1768515079292,-662.72,0.00036164,10]
[402089384,1768515079301,-1196.03,0.00036164,10]
[402089385,1768515079311,-785.06,0.00036164,10]
[402089386,1768515079320,-500.0,0.00036164,10]
[402089387,1768515079330,-668.57,0.00036164,10]
[402089388,1768515079340,-1124.65,0.00036164,10]
[402089389,1768515079349,-777.59,0.00036164,10]
[402089390,1768515079360,-1705.15,0.00036164,10]
[402089391,1768515079372,-759.01,0.00036164,10]
[402089392,1768515079383,-500.0,0.00036164,10]
[402089393,1768515079395,-500.0,0.00036164,10]
[402089394,1768515079406,-500.0,0.00036164,10]
[402089395,1768515079416,-989.09,0.00036164,10]
[402089396,1768515079428,-847.3,0.00036164,10]
[402089397,1768515079437,-635.17,0.00036164,10]
[402089398,1768515079448,-500.0,0.00036164,10]
[402089399,1768515079458,-525.63,0.00036164,10]
[402089400,1768515079469,-500.0,0.00036164,10]
[402089401,1768515079481,-500.0,0.00036164,10]
[402089402,1768515079491,-1128.83,0.00036164,10]
[402089403,1768515079502,-1563.63,0.00036164,10]
[402089404,1768515079512,-500.0,0.00036164,10]
[402089405,1768515079521,-500.0,0.00036164,10]
[402089406,1768515079531,-768.85,0.00036164,10]
[402089407,1768515079542,-556.79207448,0.00036164,10]
[402089408,1768515079551,-500.0,0.00036164,10]
[402089409,1768515079561,-151.0,0.00036164,31]
[402089410,1768515079571,-500.0,0.00036164,10]
[402089411,1768515079583,-276.990553,0.00036164,31]
[402089412,1768515079595,-1012.62,0.00036164,10]
[402089413,1768515079605,-500.0,0.00036164,10]
[402089414,1768515079616,-558.7,0.00036164,10]
[402089415,1768515079625,-500.0,0.00036164,10]
[402089416,1768515079635,-500.0,0.00036164,10]
[402089417,1768515079645,-1861.71,0.00036164,10]
[402089418,1768515079655,-500.0,0.00036164,10]
[402089419,1768515079665,-500.0,0.00036164,10]
[402089420,1768515079675,-513.31,0.00036164,10]
[402089421,1768515079686,-811.0,0.00036164,10]
[402089422,1768515079695,-846.34,0.00036164,10]
[402089423,1768515079704,-702.14,0.00036164,10]
[402089424,1768515079714,-504.55,0.00036164,10]
[402089425,1768515079723,-1222.04,0.00036164,10]
[402089426,1768515079733,-2208.42,0.00036164,10]
[402089427,1768515079743,-613.84,0.00036164,10]
[402089428,1768515079752,-500.0,0.00036164,10]
[402089429,1768515079762,-858.76,0.00036164,10]
[402089430,1768515079773,-500.0,0.00036164,10]
[402089431,1768515079784,-325.60641786,0.00036164,10]
[402089432,1768515080771,-174.39358214,0.00036164,10]
[402089433,1768515080781,-923.2,0.00036164,10]
[402089434,1768515080790,-216.49871786,0.00036164,10]
[402089435,1768515080801,-283.50128214,0.00036164,10]
[402089436,1768515080810,-750.33650703,0.00036164,10]
[402089437,1768515081645,-500.0,0.00016438,2]
[402089438,1768515081654,-104.792551,0.00016438,2]
[402089439,1768515081666,-395.207449,0.00016438,2]
[402089440,1768515081675,-500.0,0.00016438,2]
[402089441,1768515081684,-16.47480239,0.00016438,2]
[402089442,1768515081707,-483.52519761,0.00016438,2]
[402089443,1768515081717,-500.0,0.00016438,2]
[402089444,1768515081727,-500.0,0.00016438,2]
[402089445,1768515081737,-500.0,0.00016438,2]
[402089446,1768515081746,-244.99357888,0.00016438,2]
[402089447,1768515081755,-914.0,0.0003062,2]
[402089448,1768515081765,-823.24699019,0.00031708,2]
[402089449,1768515081853,-1914.73467416,0.00031708,2]
[402089450,1768515081867,-403.9965,0.00031708,2]
[402089451,1768515081878,-10873.6298,0.00031708,2]
[402089452,1768515081890,-345.5261616,0.00031708,2]
[402089453,1768515082453,-438.8164775,0.00027487,2]